[Event "Titled Tuesday Blitz November 2 2021"]
[White "Urazayev, Arystanbek"]
[Black "Pichot, Alan"]
[WhiteFideId "13709810"]
[BlackFideId "110973"]
[WhiteElo "2321"]
[BlackElo "2600"]
[Result "1-0"]
[Round "11"]
[TimeControl "180+1"]
[Date "2021.11.02"]
[WhiteClock "0:00:15"]
[BlackClock "0:00:02"]

1. e4 {[%clk 0:03:00]}  e5 {[%clk 0:02:59]} 2. Nf3 {[%clk 0:03:01]}  Nc6 {[%clk 0:03:00]} 3. Bb5 {[%clk 0:03:01]}  a6 {[%clk 0:03:00]} 4. Ba4 {[%clk 0:03:01]}  Nf6 {[%clk 0:03:01]} 5. d3 {[%clk 0:03:02]}  b5 {[%clk 0:02:57]} 6. Bb3 {[%clk 0:03:02]}  Bc5 {[%clk 0:02:58]} 7. Nc3 {[%clk 0:03:02]}  h6 {[%clk 0:02:56]} 8. Nd5 {[%clk 0:03:03]}  Rb8 {[%clk 0:02:51]} 9. c3 {[%clk 0:03:02]}  d6 {[%clk 0:02:51]} 10. h3 {[%clk 0:03:01]}  Nxd5 {[%clk 0:02:04]} 11. exd5 {[%clk 0:02:58]}  Ne7 {[%clk 0:02:03]} 12. O-O {[%clk 0:02:55]}  O-O {[%clk 0:01:46]} 13. d4 {[%clk 0:02:55]}  exd4 {[%clk 0:01:46]} 14. Nxd4 {[%clk 0:02:52]}  Bd7 {[%clk 0:01:47]} 15. Re1 {[%clk 0:02:50]}  Ng6 {[%clk 0:01:47]} 16. Be3 {[%clk 0:02:40]}  Ne5 {[%clk 0:01:46]} 17. Ne6 {[%clk 0:02:39]}  Bxe6 {[%clk 0:01:34]} 18. dxe6 {[%clk 0:02:39]}  Bxe3 {[%clk 0:01:35]} 19. exf7+ {[%clk 0:02:34]}  Nxf7 {[%clk 0:01:33]} 20. Rxe3 {[%clk 0:02:35]}  Kh8 {[%clk 0:01:33]} 21. Qd5 {[%clk 0:02:17]}  Ne5 {[%clk 0:01:33]} 22. Bc2 {[%clk 0:02:18]}  Qh4 {[%clk 0:01:30]} 23. g3 {[%clk 0:01:51]}  Qxh3 {[%clk 0:01:25]} 24. Rxe5 {[%clk 0:01:47]}  dxe5 {[%clk 0:01:12]} 25. Qe4 {[%clk 0:01:47]}  Kg8 {[%clk 0:01:13]} 26. Qh7+ {[%clk 0:01:35]}  Kf7 {[%clk 0:01:14]} 27. Qg6+ {[%clk 0:01:13]}  Kg8 {[%clk 0:01:12]} 28. Re1 {[%clk 0:00:47]}  Rbe8 {[%clk 0:00:35]} 29. Qh7+ {[%clk 0:00:29]}  Kf7 {[%clk 0:00:35]} 30. Bg6+ {[%clk 0:00:29]}  Kf6 {[%clk 0:00:32]} 31. Bxe8 {[%clk 0:00:29]}  Rxe8 {[%clk 0:00:33]} 32. Qe4 {[%clk 0:00:28]}  Qe6 {[%clk 0:00:24]} 33. Re3 {[%clk 0:00:28]}  Ke7 {[%clk 0:00:22]} 34. Qb7 {[%clk 0:00:26]}  Qd6 {[%clk 0:00:19]} 35. Rf3 {[%clk 0:00:21]}  Rf8 {[%clk 0:00:19]} 36. Re3 {[%clk 0:00:18]}  Rf5 {[%clk 0:00:15]} 37. Qe4 {[%clk 0:00:18]}  Kf6 {[%clk 0:00:13]} 38. Qh4+ {[%clk 0:00:14]}  Kf7 {[%clk 0:00:07]} 39. Qe4 {[%clk 0:00:15]}  Qf6 {[%clk 0:00:06]} 40. Re2 {[%clk 0:00:14]}  Kg8 {[%clk 0:00:05]} 41. a4 {[%clk 0:00:11]}  c6 {[%clk 0:00:03]} 42. a5 {[%clk 0:00:11]}  Kh8 {[%clk 0:00:03]} 43. Rd2 {[%clk 0:00:11]}  h5 {[%clk 0:00:03]} 44. Rd8+ {[%clk 0:00:10]}  Qxd8 {[%clk 0:00:02]} 45. Qxf5 {[%clk 0:00:10]}  Qe8 {[%clk 0:00:02]} 46. f3 {[%clk 0:00:09]}  Kg8 {[%clk 0:00:02]} 47. b4 {[%clk 0:00:09]}  g6 {[%clk 0:00:02]} 48. Qf6 {[%clk 0:00:09]}  Kh7 {[%clk 0:00:02]} 49. Qd6 {[%clk 0:00:08]}  Qf7 {[%clk 0:00:02]} 50. Qxc6 {[%clk 0:00:08]}  Qa2 {[%clk 0:00:01]} 51. Qxa6 {[%clk 0:00:07]}  Qb1+ {[%clk 0:00:01]} 52. Kf2 {[%clk 0:00:08]}  Qc2+ {[%clk 0:00:02]} 53. Kf1 {[%clk 0:00:08]}  Qd1+ {[%clk 0:00:02]} 54. Kg2 {[%clk 0:00:08]}  Qe2+ {[%clk 0:00:02]} 55. Kh3 {[%clk 0:00:08]}  Qxf3 {[%clk 0:00:03]} 56. Qa7+ {[%clk 0:00:08]}  Kh6 {[%clk 0:00:03]} 57. Kh2 {[%clk 0:00:07]}  Qe2+ {[%clk 0:00:04]} 58. Kg1 {[%clk 0:00:08]}  Qe1+ {[%clk 0:00:04]} 59. Kg2 {[%clk 0:00:08]}  Qxc3 {[%clk 0:00:04]} 60. Qf2 {[%clk 0:00:08]}  Qc6+ {[%clk 0:00:03]} 61. Qf3 {[%clk 0:00:08]}  Qc2+ {[%clk 0:00:03]} 62. Kh3 {[%clk 0:00:09]}  Qc8+ {[%clk 0:00:03]} 63. Kh2 {[%clk 0:00:09]}  Qc2+ {[%clk 0:00:04]} 64. Qg2 {[%clk 0:00:10]}  Qc8 {[%clk 0:00:03]} 65. Qd2+ {[%clk 0:00:10]}  Kg7 {[%clk 0:00:04]} 66. Qa2 {[%clk 0:00:11]}  Qa6 {[%clk 0:00:03]} 67. Qd5 {[%clk 0:00:11]}  Qf6 {[%clk 0:00:03]} 68. Qb7+ {[%clk 0:00:11]}  Kh6 {[%clk 0:00:03]} 69. a6 {[%clk 0:00:12]}  Qf2+ {[%clk 0:00:03]} 70. Qg2 {[%clk 0:00:13]}  Qa7 {[%clk 0:00:04]} 71. Qd2+ {[%clk 0:00:13]}  Kg7 {[%clk 0:00:03]} 72. Qa2 {[%clk 0:00:13]}  Kh6 {[%clk 0:00:03]} 73. Qd2+ {[%clk 0:00:13]}  Kg7 {[%clk 0:00:04]} 74. Qa2 {[%clk 0:00:14]}  Kh6 {[%clk 0:00:04]} 75. Kh3 {[%clk 0:00:14]}  Qd7+ {[%clk 0:00:04]} 76. Kg2 {[%clk 0:00:15]}  Qa7 {[%clk 0:00:04]} 77. Kf1 {[%clk 0:00:15]}  Kg5 {[%clk 0:00:02]} 78. Qd2+ {[%clk 0:00:14]}  Kg4 {[%clk 0:00:03]} 79. Qa2 {[%clk 0:00:14]}  Kf3 {[%clk 0:00:01]} 80. Qe2+ {[%clk 0:00:14]}  Kxg3 {[%clk 0:00:02]} 81. Qg2+ {[%clk 0:00:14]}  Kf4 {[%clk 0:00:02]} 82. Qf2+ {[%clk 0:00:15]} 1-0


[Site "https://www.chess.com"]

[Event "Titled Tuesday Blitz November 2 2021"]
[White "Yeletsky, Ivan"]
[Black "Jobava, Baadur"]
[WhiteFideId "24180327"]
[BlackFideId "13601520"]
[WhiteElo "2352"]
[BlackElo "2731"]
[Result "0-1"]
[Round "11"]
[TimeControl "180+1"]
[Date "2021.11.02"]
[WhiteClock "0:01:12"]
[BlackClock "0:01:12"]

1. Nf3 {[%clk 0:02:58]}  Nf6 {[%clk 0:02:37]} 2. b3 {[%clk 0:02:56]}  a5 {[%clk 0:02:34]} 3. Bb2 {[%clk 0:02:43]}  a4 {[%clk 0:02:31]} 4. e3 {[%clk 0:02:42]}  e6 {[%clk 0:02:30]} 5. Rg1 {[%clk 0:02:42]}  h5 {[%clk 0:02:19]} 6. h3 {[%clk 0:02:41]}  h4 {[%clk 0:02:18]} 7. Na3 {[%clk 0:02:31]}  b6 {[%clk 0:02:14]} 8. c4 {[%clk 0:02:24]}  Bb7 {[%clk 0:02:15]} 9. Be2 {[%clk 0:02:22]}  Ne4 {[%clk 0:01:49]} 10. Nc2 {[%clk 0:02:16]}  Nc6 {[%clk 0:01:47]} 11. bxa4 {[%clk 0:01:58]}  Nc5 {[%clk 0:01:36]} 12. Ba3 {[%clk 0:01:44]}  Rxa4 {[%clk 0:01:32]} 13. d4 {[%clk 0:01:35]}  Rxa3 {[%clk 0:01:33]} 14. Nxa3 {[%clk 0:01:32]}  Ne4 {[%clk 0:01:34]} 15. Nb5 {[%clk 0:01:32]}  Bb4+ {[%clk 0:01:28]} 16. Kf1 {[%clk 0:01:33]}  Ne7 {[%clk 0:01:27]} 17. a3 {[%clk 0:01:25]}  Ba5 {[%clk 0:01:23]} 18. Bd3 {[%clk 0:01:22]}  Nf5 {[%clk 0:01:22]} 19. Qc2 {[%clk 0:01:18]}  Neg3+ {[%clk 0:01:20]} 20. fxg3 {[%clk 0:01:18]}  Nxe3+ {[%clk 0:01:21]} 21. Kf2 {[%clk 0:01:11]}  Nxc2 {[%clk 0:01:22]} 22. Bxc2 {[%clk 0:01:12]}  hxg3+ {[%clk 0:01:22]} 23. Kxg3 {[%clk 0:01:12]}  Qb8 {[%clk 0:01:12]} 0-1


[Site "https://www.chess.com"]

[Event "Titled Tuesday Blitz November 2 2021"]
[White "Yuan, Qingyu"]
[Black "Girinath, P.D.S."]
[WhiteFideId "8609772"]
[BlackFideId "5000572"]
[WhiteElo "2359"]
[BlackElo "2333"]
[Result "1-0"]
[Round "11"]
[TimeControl "180+1"]
[Date "2021.11.02"]
[WhiteClock "0:00:26"]
[BlackClock "0:00:04"]

1. Nf3 {[%clk 0:03:00]}  Nf6 {[%clk 0:02:59]} 2. g3 {[%clk 0:02:59]}  g6 {[%clk 0:03:00]} 3. Bg2 {[%clk 0:02:59]}  Bg7 {[%clk 0:03:01]} 4. O-O {[%clk 0:03:00]}  O-O {[%clk 0:03:02]} 5. Re1 {[%clk 0:03:00]}  d5 {[%clk 0:03:02]} 6. d4 {[%clk 0:02:56]}  c5 {[%clk 0:03:01]} 7. dxc5 {[%clk 0:02:47]}  Nc6 {[%clk 0:03:00]} 8. c3 {[%clk 0:02:44]}  e5 {[%clk 0:02:59]} 9. b4 {[%clk 0:02:39]}  Re8 {[%clk 0:02:54]} 10. Bg5 {[%clk 0:02:35]}  e4 {[%clk 0:02:49]} 11. Nd4 {[%clk 0:02:33]}  Ne5 {[%clk 0:02:49]} 12. Nd2 {[%clk 0:02:26]}  h6 {[%clk 0:02:42]} 13. Bf4 {[%clk 0:02:18]}  Nh5 {[%clk 0:02:42]} 14. Be3 {[%clk 0:02:09]}  f5 {[%clk 0:02:30]} 15. Qb3 {[%clk 0:02:03]}  Kh7 {[%clk 0:02:26]} 16. c4 {[%clk 0:01:57]}  dxc4 {[%clk 0:01:31]} 17. Nxc4 {[%clk 0:01:55]}  Nxc4 {[%clk 0:01:29]} 18. Qxc4 {[%clk 0:01:46]}  f4 {[%clk 0:01:29]} 19. gxf4 {[%clk 0:01:43]}  Qh4 {[%clk 0:01:23]} 20. Rad1 {[%clk 0:01:34]}  Nxf4 {[%clk 0:01:14]} 21. Bxf4 {[%clk 0:01:27]}  Qxf4 {[%clk 0:01:15]} 22. e3 {[%clk 0:01:27]}  Qg5 {[%clk 0:00:40]} 23. Ne2 {[%clk 0:01:16]}  Bf5 {[%clk 0:00:28]} 24. Ng3 {[%clk 0:01:11]}  Re7 {[%clk 0:00:23]} 25. Rd5 {[%clk 0:01:10]}  h5 {[%clk 0:00:13]} 26. Nxe4 {[%clk 0:00:46]}  Qg4 {[%clk 0:00:10]} 27. h3 {[%clk 0:00:40]}  Qh4 {[%clk 0:00:09]} 28. Nd6 {[%clk 0:00:31]}  Qf6 {[%clk 0:00:07]} 29. Nxf5 {[%clk 0:00:28]}  gxf5 {[%clk 0:00:08]} 30. Qf4 {[%clk 0:00:28]}  Rf7 {[%clk 0:00:07]} 31. Rxf5 {[%clk 0:00:26]}  Qg6 {[%clk 0:00:04]} 32. Rxf7 {[%clk 0:00:26]} 1-0


[Site "https://www.chess.com"]

[Event "Titled Tuesday Blitz November 2 2021"]
[White "Zierk, Steven"]
[Black "Narayanan.S.L"]
[WhiteFideId "2034255"]
[BlackFideId "5058422"]
[WhiteElo "2494"]
[BlackElo "2570"]
[Result "0-1"]
[Round "11"]
[TimeControl "180+1"]
[Date "2021.11.02"]
[WhiteClock "0:00:12"]
[BlackClock "0:00:45"]

1. e4 {[%clk 0:03:00]}  c6 {[%clk 0:02:59]} 2. d4 {[%clk 0:03:00]}  d5 {[%clk 0:03:00]} 3. exd5 {[%clk 0:03:01]}  cxd5 {[%clk 0:03:00]} 4. Bd3 {[%clk 0:03:02]}  Nf6 {[%clk 0:03:00]} 5. c3 {[%clk 0:03:02]}  Bg4 {[%clk 0:03:01]} 6. Qb3 {[%clk 0:03:01]}  Qc7 {[%clk 0:02:59]} 7. Ne2 {[%clk 0:03:01]}  Bxe2 {[%clk 0:02:59]} 8. Bxe2 {[%clk 0:03:01]}  e6 {[%clk 0:03:00]} 9. Nd2 {[%clk 0:03:00]}  Bd6 {[%clk 0:03:00]} 10. Nf3 {[%clk 0:03:01]}  Nbd7 {[%clk 0:03:01]} 11. Bg5 {[%clk 0:02:57]}  Ne4 {[%clk 0:03:00]} 12. Be3 {[%clk 0:02:57]}  O-O {[%clk 0:03:00]} 13. g3 {[%clk 0:02:54]}  f5 {[%clk 0:03:00]} 14. Ng5 {[%clk 0:02:52]}  Nxg5 {[%clk 0:02:48]} 15. Bxg5 {[%clk 0:02:52]}  h6 {[%clk 0:02:49]} 16. Bd2 {[%clk 0:02:51]}  f4 {[%clk 0:02:48]} 17. Bg4 {[%clk 0:02:46]}  Rae8 {[%clk 0:02:46]} 18. O-O-O {[%clk 0:02:42]}  Nf6 {[%clk 0:02:46]} 19. Bf3 {[%clk 0:02:27]}  b5 {[%clk 0:02:46]} 20. Kb1 {[%clk 0:02:21]}  a5 {[%clk 0:02:44]} 21. Qxb5 {[%clk 0:02:11]}  Rb8 {[%clk 0:02:43]} 22. Qd3 {[%clk 0:02:12]}  a4 {[%clk 0:02:27]} 23. Ka1 {[%clk 0:02:11]}  Kh8 {[%clk 0:02:24]} 24. g4 {[%clk 0:02:00]}  a3 {[%clk 0:02:21]} 25. b3 {[%clk 0:01:59]}  e5 {[%clk 0:02:22]} 26. dxe5 {[%clk 0:01:57]}  Bxe5 {[%clk 0:02:23]} 27. Rc1 {[%clk 0:01:51]}  Ne4 {[%clk 0:02:20]} 28. Bxe4 {[%clk 0:01:47]}  dxe4 {[%clk 0:02:21]} 29. Qxe4 {[%clk 0:01:47]}  Rbd8 {[%clk 0:02:21]} 30. Rhe1 {[%clk 0:01:38]}  Rfe8 {[%clk 0:02:06]} 31. Qc2 {[%clk 0:01:30]}  Qd7 {[%clk 0:01:57]} 32. Rxe5 {[%clk 0:01:22]}  Rxe5 {[%clk 0:01:56]} 33. Bxf4 {[%clk 0:01:23]}  Rd5 {[%clk 0:01:51]} 34. Be3 {[%clk 0:01:16]}  Qxg4 {[%clk 0:01:49]} 35. Bd4 {[%clk 0:01:10]}  Rxd4 {[%clk 0:01:48]} 36. cxd4 {[%clk 0:01:08]}  Qxd4+ {[%clk 0:01:49]} 37. Kb1 {[%clk 0:01:08]}  Qe5 {[%clk 0:01:48]} 38. h3 {[%clk 0:01:04]}  Qe6 {[%clk 0:01:38]} 39. Qc3 {[%clk 0:00:56]}  Qf5+ {[%clk 0:01:36]} 40. Ka1 {[%clk 0:00:49]}  Kh7 {[%clk 0:01:01]} 41. b4 {[%clk 0:00:32]}  Rd3 {[%clk 0:01:01]} 42. Qc2 {[%clk 0:00:33]}  Qe5+ {[%clk 0:01:01]} 43. Kb1 {[%clk 0:00:32]}  Qe4 {[%clk 0:01:01]} 44. Ka1 {[%clk 0:00:20]}  Qd4+ {[%clk 0:01:01]} 45. Kb1 {[%clk 0:00:20]}  Qxb4+ {[%clk 0:01:01]} 46. Ka1 {[%clk 0:00:21]}  Qd4+ {[%clk 0:01:02]} 47. Kb1 {[%clk 0:00:21]}  Qe4 {[%clk 0:01:01]} 48. h4 {[%clk 0:00:17]}  h5 {[%clk 0:01:00]} 49. f4 {[%clk 0:00:15]}  g6 {[%clk 0:00:45]} 50. Rg1 {[%clk 0:00:14]}  Qb4+ {[%clk 0:00:44]} 51. Kc1 {[%clk 0:00:12]}  Qxf4+ {[%clk 0:00:44]} 52. Kb1 {[%clk 0:00:11]}  Qb4+ {[%clk 0:00:45]} 53. Kc1 {[%clk 0:00:12]}  Rc3 {[%clk 0:00:45]} 0-1


[Site "https://www.chess.com"]